Cogmind - Beta 10.1 @@@ ROGUE MODE // 2020.10.05 @ 23:46:24 Player: BOTHUNTER Result: Destroyed by as-88065 with Assembled Rifle Performance ------------- Evolutions (0) 0 Regions Visited (4) 800 Robots Destroyed (30) 150 Value Destroyed (560) 560 Prototype IDs (0) 0 Alien Tech Used (0) 0 Bonus (0) 0 TOTAL SCORE: 1510 Bonus ------- None Cogmind --------- Core Integrity 0/250 Matter 300/300 Energy 123/125 System Corruption 0% Temperature Cool (0) Movement Rolling (80) Location -9/Mines Parts ------- > --- POWER (1) -------- Light Ion Engine > --- PROPULSION (2) --- Wheel Wheel > --- UTILITY (2) ------ Small Storage Unit Hacking Suite > --- WEAPON (2) ------- (None) > --- INVENTORY (6) ---- Light Ion Engine Large Battery (300) Particle Cannon Grenade Launcher Stasis Trap (100%) Peak State ------------ > --- POWER ------------ Light Ion Engine > --- PROPULSION ------- Flight Unit Flight Unit > --- UTILITY ---------- Small Storage Unit Hacking Suite > --- WEAPON ----------- Particle Cannon Particle Cannon > --- INVENTORY -------- Large Battery Particle Cannon Grenade Launcher Stasis Trap [Rating: 11] Favorites ----------- Power Light Ion Engine Engine Light Ion Engine Propulsion Light Treads Treads Light Treads Leg Aluminum Leg Wheel Wheel Flight Unit Flight Unit Utility Small Storage Unit Storage Small Storage Unit Processor Transport Network Coupler Hackware Hacking Suite Weapon Particle Cannon Energy Cannon Particle Cannon Ballistic Gun Light Assault Rifle Launcher Grenade Launcher Build | -11 -10 -10 -10 -9 ------- Run | Scr Mat Min Exi Min Slots Evolved . | . . . . . Power . | . . . . . Propulsion . | . . . . . Utility . | . . . . . Weapon . | . . . . . Parts Attached 29 | 6 10 1 2 10 Power 4 | 1 1 . . 2 Engine 4 | 1 1 . . 2 Core . | . . . . . Reactor . | . . . . . Propulsion 10 | 2 2 . . 6 Treads 2 | . 2 . . . Leg 2 | 2 . . . . Wheel 4 | . . . . 4 Hover . | . . . . . Flight 2 | . . . . 2 Utility 3 | 1 1 . 1 . Device . | . . . . . Storage 1 | 1 . . . . Processor 1 | . 1 . . . Hackware 1 | . . . 1 . Protection . | . . . . . Artifact . | . . . . . Weapon 12 | 2 6 1 1 2 Energy Gun . | . . . . . Energy Cannon 5 | . 2 1 1 1 Ballistic Gun 6 | 2 3 . . 1 Ballistic Cannon . | . . . . . Launcher 1 | . 1 . . . Special Weapon . | . . . . . Impact Weapon . | . . . . . Slashing Weapon . | . . . . . Piercing Weapon . | . . . . . Special Melee Weapon . | . . . . . Unidentified Prototypes . | . . . . . Parts Lost 12 | . 5 1 . 6 Power 1 | . . 1 . . Propulsion 5 | . 2 . . 3 Utility . | . . . . . Weapon 6 | . 3 . . 3 Highest Loss Streak 4 | . 4 1 . 3 Average Slot Usage (%) 86 | . 93 87 85 79 Engine 5 | . 14 1 . 10 Treads 18 | . 5 28 28 2 Leg 5 | . 21 . . . Wheel 1 | . . . . 13 Storage 14 | . 14 14 14 14 Processor 8 | . 11 14 7 . Hackware 4 | . . . 6 14 Energy Cannon 19 | . 1 28 28 17 Ballistic Gun 6 | . 23 . . 1 Naked Turns . | . . . . . Heaviest Build 15 | 9 15 15 12 15 Greatest Support 40 | 20 40 40 40 40 Greatest Overweight (x) 3 | . 2 . . 3 Average Overweight (x) . | . . . . . Largest Inventory Capacity 6 | 6 6 6 6 6 Average Capacity 5 | 5 6 6 6 6 Most Carried 6 | 4 6 6 6 6 Average Carried 5 | 1 5 5 5 4 Final Capacity 6 | 6 6 6 6 6 Final Carried 6 | 4 5 6 5 5 Class Distribution -------------------- 92% | Mutant 7% | Scavenger-Mutant Dominant Class ---------------- Mutant | -10/Materials Mutant | -10/Mines Mutant | -10/Exiles Scavenger-Mutant | -9/Mines Resources | -11 -10 -10 -10 -9 ----------- Run | Scr Mat Min Exi Min Matter Collected 552 | 241 196 4 10 101 Remotely . | . . . . . Salvage Created 799 | . 514 95 . 190 Parts 57 | . 39 3 . 15 Haulers Intercepted 1 | . 1 . . . Recyclers Shooed 1 | . 1 . . . Parts Field Recycled . | . . . . . Retrieved Matter . | . . . . . Parts Self-Destructed . | . . . . . Prevented . | . . . . . Kills | -11 -10 -10 -10 -9 ------- Run | Scr Mat Min Exi Min Combat Hostiles Destroyed 23 | . 15 2 . 6 Guns 11 | . 10 . . 1 Cannons 7 | . . 2 . 5 AOE 5 | . 5 . . . Classes Destroyed 7 | . 6 . . 1 Worker 3 | . 1 . . 2 Builder 1 | . 1 . . . Hauler 1 | . 1 . . . Recycler 1 | . . . . 1 Operator 1 | . 1 . . . Swarmer 11 | . 5 . . 6 Grunt 12 | . 10 2 . . Best Kill Streak 8 | . 8 1 . 3 Combat Bots Only 6 | . 6 1 . 3 Max Kills in Single Turn 4 | . 4 1 . 1 Gunslinging . | . . . . . Exploded 3 | . 3 . . . Melee . | . . . . . Uniques/NPCs Destroyed . | . . . . . Combat | -11 -10 -10 -10 -9 -------- Run | Scr Mat Min Exi Min Damage Taken 1509 | . 744 144 . 621 Core 254 | . 92 35 . 127 Absorbed by Shields . | . . . . . Core Remaining (%) 100 | 100 . . . . Volleys Fired 83 | . 46 12 . 25 Largest 2 | . 2 2 . 2 Hottest 136 | . 50 136 . 136 Shots Fired 125 | . 81 15 . 29 Gun 84 | . 78 . . 6 Cannon 38 | . . 15 . 23 Launcher 3 | . 3 . . . Special . | . . . . . Kinetic 84 | . 78 . . 6 Thermal 38 | . . 15 . 23 Explosive 3 | . 3 . . . Electromagnetic . | . . . . . Robot Hit Streak 13 | . 7 13 . 7 Robot Miss Streak 4 | . 2 1 . 4 Penetration Max . | . . . . . Secondary Targets 1 | . 1 . . . Max Gunslinging Chain 1 | . 1 . . . Shots Hit Robots 81 | . 51 13 . 17 Core Hits 47 | . 35 3 . 9 Critical Hits . | . . . . . Critical Kills . | . . . . . Critical Parts Destroyed . | . . . . . Melee Attacks . | . . . . . Impact . | . . . . . Slashing . | . . . . . Piercing . | . . . . . Sneak Attacks . | . . . . . Combat Hostiles . | . . . . . Follow-up Attacks . | . . . . . Damage Inflicted 1471 | . 812 300 . 359 Guns 439 | . 411 . . 28 Cannons 623 | . . 292 . 331 Explosions 401 | . 401 . . . Melee . | . . . . . Ramming 8 | . . 8 . . Kinetic 439 | . 411 . . 28 Thermal 623 | . . 292 . 331 Explosive 401 | . 401 . . . Electromagnetic . | . . . . . Impact . | . . . . . Slashing . | . . . . . Piercing . | . . . . . Highest Corruption . | . . . . . Average Corruption . | . . . . . Corruption Purged . | . . . . . Overload Shots . | . . . . . Overflow Damage 9 | . . 6 . 3 Projectiles 9 | . . 6 . 3 Explosions . | . . . . . Melee . | . . . . . Knockbacks . | . . . . . Impact . | . . . . . Kinetic . | . . . . . Secondary . | . . . . . Self-Inflicted Damage 7 | . 7 . . . Shots 1 | . 1 . . . Rammed 4 | . . 4 . . Targets Rammed 4 | . . 4 . . Kicked . | . . . . . Crushed . | . . . . . Highest Temperature 224 | . 28 224 . 209 Average Temperature 67 | . 10 101 . 74 Received Heat Transfer 390 | . 312 78 . . Siege Activations . | . . . . . Robots Corrupted . | . . . . . Combat Hostiles . | . . . . . Parts Fried . | . . . . . Impact Corruptions . | . . . . . Robots Melted . | . . . . . Combat Hostiles . | . . . . . Parts Melted 2 | . . 2 . . Heat Transferred 1036 | . . 481 . 555 Parts Sabotaged . | . . . . . Parts Stolen . | . . . . . Parts Stripped . | . . . . . Power Chain Reactions . | . . . . . Missiles Intercepted . | . . . . . Alert | -11 -10 -10 -10 -9 ------- Run | Scr Mat Min Exi Min Peak Influence 356 | . 356 137 . 125 Initial 97 | . . 97 . . Average 118 | . 144 122 . 89 Maximum Alert Level 1 | . 1 . . . Low Security (%) 82 | 100 62 100 . 100 Level 1 17 | . 37 . . . Level 2 . | . . . . . Level 3 . | . . . . . Level 4 . | . . . . . Level 5 . | . . . . . High Security . | . . . . . Max Security . | . . . . . Squads Dispatched 6 | . 5 1 . . Investigation 5 | . 4 1 . . Extermination . | . . . . . Reinforcement 1 | . 1 . . . Assault . | . . . . . Garrison . | . . . . . Intercept . | . . . . . Construction Impeded . | . . . . . Haulers Reinforced . | . . . . . Stealth | -11 -10 -10 -10 -9 --------- Run | Scr Mat Min Exi Min Distress Signals 1 | . 1 . . . Communications Jammed . | . . . . . Distress Signals . | . . . . . Times Spotted 42 | . 24 3 . 15 Peak Tracking Total 15 | . 9 2 . 15 Tactical Retreats 4 | . 2 2 . . Traps | -11 -10 -10 -10 -9 ------- Run | Scr Mat Min Exi Min Traps Triggered . | . . . . . Indirectly . | . . . . . Trap Hack Attempts . | . . . . . Triggered . | . . . . . Disarmed . | . . . . . Reprogrammed . | . . . . . Reused . | . . . . . Traps Extracted . | . . . . . Installed 2 | . . . 1 1 Triggered . | . . . . . Machines | -11 -10 -10 -10 -9 ---------- Run | Scr Mat Min Exi Min Machines Disabled 1 | . 1 . . . Max in Single Turn 1 | . 1 . . . Machines Sabotaged . | . . . . . Garrisons Compromised . | . . . . . Overloaded Fab Kills . | . . . . . Fab Network Shutdowns . | . . . . . Hacking | -11 -10 -10 -10 -9 --------- Run | Scr Mat Min Exi Min Machines Accessed 8 | . 6 1 1 . Terminals 6 | . 5 1 . . Fabricators . | . . . . . Repair Stations . | . . . . . Recycling Units 1 | . 1 . . . Scanalyzers . | . . . . . Garrison Access . | . . . . . Total Hacks 23 | . 20 2 1 . Successful 15 | . 12 2 1 . Failed 8 | . 8 . . . Catastrophic 1 | . 1 . . . Database Lockouts . | . . . . . Manual 15 | . 12 3 . . Terminals 18 | . 16 2 . . Fabricators . | . . . . . Repair Stations . | . . . . . Recycling Units 4 | . 4 . . . Scanalyzers . | . . . . . Garrison Access . | . . . . . Terminal Hacks 6 | . 3 2 1 . Record 1 | . . . 1 . Robot Analysis 4 | . 2 2 . . Branch Access Points 1 | . 1 . . . Fabricator Hacks . | . . . . . Repair Station Hacks . | . . . . . Recycling Unit Hacks 1 | . 1 . . . Retrieve Matter 1 | . 1 . . . Scanalyzer . | . . . . . Garrison Access Hacks . | . . . . . Unauthorized Hacks 8 | . 8 . . . Terminals 7 | . 7 . . . Track 1 | . 1 . . . Botnet 4 | . 4 . . . Sabotage 1 | . 1 . . . Search 1 | . 1 . . . Fabricators . | . . . . . Repair Stations . | . . . . . Recycling Units 1 | . 1 . . . Tunnel 1 | . 1 . . . Scanalyzers . | . . . . . Garrison Access . | . . . . . Data Cores Recovered . | . . . . . Used . | . . . . . Hacking Detections 5 | . 4 1 . . Full Trace Events 4 | . 3 1 . . Feedback Events . | . . . . . Feedback Blocked . | . . . . . Robot Schematics Acquired . | . . . . . Robots Built . | . . . . . Matter . | . . . . . Time . | . . . . . Total Robot Build Rating . | . . . . . Part Schematics Acquired . | . . . . . Parts Built . | . . . . . Matter . | . . . . . Time . | . . . . . Total Part Build Rating . | . . . . . Parts Repaired . | . . . . . Time . | . . . . . Parts Recycled . | . . . . . Recycled Matter . | . . . . . Retrieved Matter . | . . . . . Retrieved Components . | . . . . . Parts Scanalyzed . | . . . . . Part Schematics Acquired . | . . . . . Parts Damaged . | . . . . . Bothacking | -11 -10 -10 -10 -9 ------------ Run | Scr Mat Min Exi Min Used RIF Installer . | . . . . . Robots Hacked . | . . . . . Non-combat . | . . . . . Combat . | . . . . . Robot Hacks Applied . | . . . . . Relay Couplers Released . | . . . . . Robots Rewired . | . . . . . Allies Hacked . | . . . . . Hacks Repelled . | . . . . . Allies | -11 -10 -10 -10 -9 -------- Run | Scr Mat Min Exi Min Total Allies . | . . . . . Largest Group . | . . . . . Highest-Rated Group . | . . . . . Highest-Rated Ally . | . . . . . Total Orders . | . . . . . Ally Attacks . | . . . . . Total Damage . | . . . . . Kills . | . . . . . Allies Corrupted . | . . . . . Allies Melted . | . . . . . Intel | -11 -10 -10 -10 -9 ------- Run | Scr Mat Min Exi Min Robot Analysis Total 4 | . 2 2 . . Derelict Logs Recovered 1 | . . . . 1 Drone Launches . | . . . . . Drone Recoveries . | . . . . . Exploration | -11 -10 -10 -10 -9 ------------- Run | Scr Mat Min Exi Min Turns Passed 1956 | 66 506 301 846 237 Spaces Moved 1164 | 61 259 164 526 154 Core 34 | 28 3 . . 3 Treads 748 | . 50 164 526 8 Legs 239 | 33 206 . . . Wheels 133 | . . . . 133 Hover . | . . . . . Flight 10 | . . . . 10 Fastest Speed 50 | 50 120 160 160 80 Average Speed 141 | 87 128 160 160 99 Slowest Speed 200 | 120 160 160 160 200 Overloaded Moves . | . . . . . Propulsion Burnouts . | . . . . . Robots Hopped . | . . . . . Cave-ins Triggered . | . . . . . Exploration Rate (%) 44 | 3 53 38 87 42 Regions Visited 4 Branch Regions 3 Pre-discovered Areas 1 | . 1 . . . Known Exits Taken 1 | . 1 . . . Unknown Exits Taken 3 | 1 . 1 1 . Scrap Searched 1 | . . . . 1 Spaces Dug . | . . . . . Terrain Destroyed 7 | . 7 . . . Melee . | . . . . . Projectile . | . . . . . AOE 7 | . 7 . . . Terrain Rammed . | . . . . . Walls Destroyed . | . . . . . Machines Disabled . | . . . . . Actions | -11 -10 -10 -10 -9 --------- Run | Scr Mat Min Exi Min Total 1360 | 70 365 186 531 208 Wait 58 | . 43 1 . 14 Move 1160 | 60 258 163 525 154 Hop . | . . . . . Pick Up 13 | 4 5 3 1 . Fast Attach 16 | 6 4 . . 6 Attach 7 | . 3 1 1 2 Detach 1 | . . . . 1 Swap 6 | . 3 . 1 2 Drop 10 | . 3 2 2 3 Fire 83 | . 46 12 . 25 Melee . | . . . . . Ram . | . . . . . Kick . | . . . . . Crush 4 | . . 4 . . Escape Stasis . | . . . . . Rewire . | . . . . . Trap 2 | . . . 1 1 Miscellaneous . | . . . . . Route ------- -11/Scrapyard -10/Materials (discovered 2 exits: [*Mat] / *Min) -10/Mines (discovered 2 exits: [*Mat] / *Exi) -10/Exiles -9/Mines (discovered 1 exit: [*Mat]) History --------- Turn | Location | Event 2 | -11/Scrapyard | Discovered new exit (range 16) 67 | -11/Scrapyard | Entered Materials 287 | -10/Materials | Identified exit to Mines 306 | -10/Materials | Build established: Mutant 433 | -10/Materials | Discovered new exit (range 14) 497 | -10/Materials | Lost 4 parts (2n2w) 573 | -10/Materials | Entered Mines 636 | -10/Mines | Core integrity fell below 50% 728 | -10/Mines | Discovered new exit (range 8) 816 | -10/Mines | Found a hidden stash of uninstalled traps 864 | -10/Mines | Deemed a non-threat by the Exiles lab entrance 866 | -10/Mines | Discovered new exit (range 5) 874 | -10/Mines | Entered Exiles 874 | -10/Exiles | Found Exiles lab abandoned 1378 | -10/Exiles | Discovered new exit (range 14) 1720 | -10/Exiles | Entered Mines 1826 | -9/Mines | Core integrity fell below 20% 1859 | -9/Mines | Lost 3 parts (1n2w) 1872 | -9/Mines | Discovered new exit (range 15) 1938 | -9/Mines | Assembled infested the area 1957 | -9/Mines | Destroyed by as-88065 with Assembled Rifle Last Messages --------------- 01893_ Acquired Wheel. 01896_ K-01 Serf collects debris. 01898_ Dropped Com. Wheel. 01899_ K-01 Serf collects debris. 01903_ Acquired 24 matter. 01904_ R-06 Scavenger collects Com. Wheel. 01905_ K-01 Serf collects debris. 01908_ R-06 Scavenger collects Lgt. Ion Engine. 01911_ K-01 Serf collects debris. 01920_ Searching scrap... 01920_ Found Particle Gun. 01920_ Found 19 Matter. 01921_ Acquired 16 matter. 01938_ ALERT: Infestation in the mines, dispatching Demolisher response squad. 01954_ C-30 ARC bursts open, deploying its payload. 01954_ D-53 Grenadier unfolds itself. 01955_ Particle Cannon destroyed. 01956_ K-01 Serf collects debris. 01956_ as-96002 destroyed. 01957_ K-01 Serf collects debris. Map ----- +----------------------------------------------------+ | ???????????????????????????????# #?# #?? | | ???????????????????????????????# ## """ ##?? | | ????????????????????????????????# """ ##??? | | ????????????????????????????????# """ ##???? | | ????????????????????????????????# #????? | | ????????????????????????????????## ##????? | | ?????????????????????????????????# ## #?????? | | ?????????????????????????????????## ### #?????? | | ??????????????????????????????????## ##?# ?????? | | ???????????????????????????????????# ##??# ##????? | | ???????????????????????????????????# #???# #?????? | | ???????????????????????????????????# #???# #?????? | | ???????????????????????????????????# ##### #?????? | | ????????????????????????###????????# #?????? | | ???????????????????????## #####???####### #?????? | | ???????????????????????# ##????????# #?????? | | ???????????????????????# ###??????# #?????? | | ???????????????????????? ##?????# #?????? | | ?????????????????????????? #?????# #?????? | | ??????????????????????????? ##????# #?????? | | ????????????????????????????# ##???# #?????? | | ????????????????????????????# #???# #?????? | | ????????????????????????????# ##??#%#?????? | | ???????????????????????###?## " #??# #?????? | | ???????????????????##### ### % #??# #?????? | | ???????????????????# @ d ### ##??# #?????? | | ??????????????????## d ##?# ###???# #?????? | | ??????????????????# ##?# ####### ##????? | | ?????????????????# #?# %[ #????? | | ?????????????????# ########## #????? | | ??????????????### a% # #???????# #????? | | ??????????????# #### #??????# #????? | | ?????????????# a ???### #?????## ##???? | | ?????????? a ?????## ##?????# < ##??? | | ????????# #??????## ##??????# #??? | | ?????? #????????###???????# #??? | | ????? #?????????????????## ##??? | | ?????## #????????????????## ##??? | | ??????## #????????????????# #??? | | ???????## #???????????????# #??? | | ????????#### ##??????????????# ##??? | | ???????????#### ##???????????????# ###???? | | ??????????????## #?????????????????## ##?????? | | ???????????????###???????????????????## #???????? | | ??????????????????????????????????????###????????? | | ?????????????????????????????????????????????????? | | | | | | | | | +----------------------------------------------------+ Best States ------------- Heat Dissipation 25 Energy Generation 10 Energy Capacity 125 Matter Stores 300 Matter Capacity 300 Sight Range 16 Terrain Scan Density 10 Evasion (%) 50 Recoil Reduction 2 Offensive Hacking 10 Item Schematics ----------------- None Robot Schematics ------------------ None Fabricated ------------ Nothing Alien Tech Used ----------------- None Achievements -------------- None Challenges ------------ None Game ------ Seed BlastLobotomyGun Manual? 0 Play Time 00:21:11 Cumulative 106.6 hours Start 2020.10.05 @ 23:26:22 End 2020.10.05 @ 23:46:24 Sessions 1 Manual Loads 0 Difficulty Rogue Special Mode None Game No. 162 Rogue 138 Adventurer 22 Explorer 2 Win Type - Total 1 Types 1/0/0/0/0/0/0/0/0 Lore% 48 Gallery% 52 Achievement% 43 Wizard Run 0 Options --------- ASCII 0 Keyboard 0 Movement Numpad Keybinds 0 Fullscreen 1 Font 14/SmallcapsGlow Map View 84x54 Tactical HUD 1 Map Filters NONE Filters NONE Steam 1 RUN: b0971b4e-9e19-43f8-926c-ecbbf0f09712